fUST/lending_fUST_20260120
["ID","MTS","AMOUNT","RATE_DAILY","PERIOD"]
[402762186,1768893032183,-260.5805306,9.215e-05,2]
[402762187,1768893032192,-124878.00339632,0.00010011,2]
[402762188,1768893032202,-260.5805306,0.00010292,2]
[402762189,1768893032212,-250.0,0.00010569,2]
[402762190,1768893032222,-445.202766,0.00010569,2]
[402762191,1768893032231,-250.0,0.00010569,2]
[402762192,1768893032241,-250.0,0.00010569,2]
[402762193,1768893032252,-250.0,0.00010569,2]
[402762194,1768893032261,-250.0,0.00010569,2]
[402762195,1768893032272,-250.0,0.00010569,2]
[402762196,1768893032281,-250.0,0.00010569,2]
[402762197,1768893032292,-250.0,0.00010569,2]
[402762198,1768893032303,-250.0,0.00010569,2]
[402762199,1768893032315,-2150.738,0.00010569,2]
[402762200,1768893032325,-201.031667,0.00010569,2]
[402762201,1768893032334,-1368.0,0.00010804,2]
[402762202,1768893032343,-2148.0,0.00010804,2]
[402762203,1768893032353,-629.0,0.00010804,2]
[402762204,1768893032364,-417.0,0.00010804,2]
[402762205,1768893032375,-715.0,0.00010804,2]
[402762206,1768893032384,-199.667,0.00010804,2]
[402762207,1768893032394,-400.77247729,0.00010898,2]
[402762208,1768893032406,-461.67526834,0.00011117,2]
[402762209,1768893032415,-2230.315306,0.00011117,2]
[402762210,1768893032426,-7949.9564232,0.0001118,2]
[402762211,1768893032437,-150.076,0.00011286,2]
[402762212,1768893032447,-260.5805306,0.00011368,2]
[402762213,1768893032457,-1773.8750498,0.0001162,2]
[402762214,1768893032466,-159.62665953,0.00011632,2]
[402762215,1768893032477,-478.75725327,0.00011665,2]
[402762216,1768893032486,-2312.83697232,0.00011665,2]
[402762217,1768893032495,-1041.66666667,0.0001173,2]
[402762218,1768893032505,-665.77780336,0.00012178,2]
[402762219,1768893032515,-3970.22367559,0.00012178,2]
[402762220,1768893032524,-569.12867667,0.00012178,2]
[402762221,1768893032533,-2274.23819199,0.00012178,2]
[402762222,1768893032543,-1714.32218094,0.00012178,2]
[402762223,1768893032553,-2716.42345909,0.00012178,2]
[402762224,1768893032562,-1230.52014753,0.00012178,2]
[402762225,1768893032571,-496.47127164,0.00012213,2]
[402762226,1768893032581,-1973.36387178,0.00012213,2]
[402762227,1768893032590,-160.05,0.00012262,2]
[402762228,1768893032600,-160.05,0.00012262,2]
[402762229,1768893032612,-160.05,0.00012262,2]
[402762230,1768893032622,-159.61,0.00012262,2]
[402762231,1768893032632,-500.0,0.00012329,2]
[402762232,1768893032641,-500.0,0.00012329,2]
[402762233,1768893032651,-500.0,0.00012329,2]
[402762234,1768893032661,-500.0,0.00012329,2]
[402762235,1768893032671,-309.30146272,0.00012329,2]
[402762236,1768893032680,-260.5805306,0.00012445,2]
[402762237,1768893032690,-514.84070869,0.00012761,2]
[402762238,1768893032700,-500.0,0.00012877,2]
[402762239,1768893032710,-729.0,0.00012893,2]
[402762240,1768893032719,-461.90726196,0.00012898,2]
[402762241,1768893032728,-10965.09194996,0.000129,2]
[402762242,1768893032738,-10965.09194992,0.000129,2]
[402762243,1768893032748,-2018.25509233,0.00012934,2]
[402762244,1768893032765,-508.53016225,0.0001297,2]
[402762245,1768893032780,-164233.1267071,0.00012986,2]
[402762246,1768893032790,-250.98787838,0.00013014,2]
[402762247,1768893032800,-500.0,0.00013014,2]
[402762248,1768893032810,-3876.0,0.0001308,2]
[402762249,1768893032820,-729.0,0.00013139,2]
[402762250,1768893032830,-250.0,0.00013151,2]
[402762251,1768893032841,-500.0,0.00013211,2]
[402762252,1768893032851,-160.0,0.00013211,5]
[402762253,1768893032863,-194.72792766,0.00013233,2]
[402762254,1768893032873,-155.0,0.00013272,2]
[402762255,1768893032884,-500.0,0.00013273,2]
[402762256,1768893032894,-500.0,0.00013273,2]
[402762257,1768893032904,-500.0,0.00013273,2]
[402762258,1768893032914,-500.44441304,0.00013273,2]
[402762259,1768893032923,-500.0,0.00013273,2]
[402762260,1768893032933,-500.0,0.00013273,2]
[402762261,1768893032943,-500.0,0.00013273,2]
[402762262,1768893032953,-500.0,0.00013273,2]
[402762263,1768893032963,-501.21191706,0.00013273,2]
[402762264,1768893032973,-217.40750351,0.00013273,2]
[402762265,1768893032983,-500.0,0.00013273,2]
[402762266,1768893032997,-548.62899052,0.00013273,2]
[402762267,1768893033008,-502.14449419,0.00013273,2]
[402762268,1768893033018,-264.62653308,0.00013273,2]
[402762269,1768893033028,-501.16877104,0.00013273,2]
[402762270,1768893033038,-283.82405284,0.00013273,2]
[402762271,1768893033049,-501.04408585,0.00013273,2]
[402762272,1768893033061,-501.14775372,0.00013273,2]
[402762273,1768893033071,-501.075233,0.00013273,2]
[402762274,1768893033080,-500.0,0.00013273,2]
[402762275,1768893033090,-500.0,0.00013273,2]
[402762276,1768893033099,-500.0,0.00013273,2]
[402762277,1768893033111,-500.0,0.00013273,2]
[402762278,1768893033120,-500.0,0.00013273,2]
[402762279,1768893033129,-500.0,0.00013273,2]
[402762280,1768893033139,-500.0,0.00013273,2]
[402762281,1768893033150,-500.0,0.00013273,2]
[402762282,1768893033160,-501.17173594,0.00013273,2]
[402762283,1768893033170,-218.29013,0.00013273,2]
[402762284,1768893033179,-501.15703421,0.00013273,2]
[402762285,1768893033189,-500.0,0.00013273,2]
[402762286,1768893033199,-500.70329513,0.00013273,2]
[402762287,1768893033209,-165.8003176,0.00013273,2]
[402762288,1768893033219,-500.66250709,0.00013273,2]
[402762289,1768893033228,-500.0,0.00013273,2]
[402762290,1768893033238,-500.0,0.00013273,2]
[402762291,1768893033247,-500.0,0.00013273,2]
[402762292,1768893033257,-500.0,0.00013273,2]
[402762293,1768893033267,-500.0,0.00013273,2]
[402762294,1768893033277,-500.43959266,0.00013273,2]
[402762295,1768893033287,-501.12366089,0.00013273,2]
[402762296,1768893033296,-500.0,0.00013273,2]
[402762297,1768893033307,-500.56673933,0.00013273,2]
[402762298,1768893033316,-171.87560824,0.00013273,2]
[402762299,1768893033326,-500.0,0.00013273,2]
[402762300,1768893033335,-156.67219213,0.00013273,2]
[402762301,1768893033344,-500.0,0.00013273,2]
[402762302,1768893033354,-500.0,0.00013273,2]
[402762303,1768893033364,-305.34302164,0.00013273,2]
[402762304,1768893033374,-500.0,0.00013273,2]
[402762305,1768893033383,-500.65936208,0.00013273,2]
[402762306,1768893033393,-500.0,0.00013273,2]
[402762307,1768893033403,-500.38274325,0.00013273,2]
[402762308,1768893033412,-500.90973917,0.00013273,2]
[402762309,1768893033422,-501.52515084,0.00013273,2]
[402762310,1768893033431,-533.88981491,0.00013309,2]
[402762311,1768893033441,-729.0,0.00013356,2]
[402762312,1768893033451,-154.0,0.000134,2]
[402762313,1768893033460,-160.0,0.000134,2]
[402762314,1768893033470,-160.0,0.000134,3]
[402762315,1768893033480,-160.0,0.000134,3]
[402762316,1768893033690,-3876.0,0.000134,2]
[402762317,1768893033701,-475.0,0.00013492,2]
[402762318,1768893033711,-475.0,0.00013492,2]
[402762319,1768893033720,-200.38000856,0.00013531,2]
[402762320,1768893033730,-10557.79629129,0.0001361,2]
[402762321,1768893033739,-38000.0,0.00013667,3]
[402762322,1768893033749,-3876.0,0.00013672,2]
[402762323,1768893033759,-729.0,0.00013672,2]
[402762324,1768893033768,-300.0,0.00013673,2]
[402762325,1768893033779,-38000.0,0.00013676,3]
[402762326,1768893033788,-10591.08912275,0.00013685,3]
[402762329,1768893038306,-307.8364998,0.00013685,3]
[402762366,1768893040548,-3e-08,0.00013685,3]
[402762392,1768893043140,-415.58493197,0.00013685,3]
[402762408,1768893043287,-32.48974216,0.00013685,3]
[402762437,1768893046166,-14899.520315,0.00013685,3]
[402762452,1768893046310,-1064.02929448,0.00013685,3]
[402762794,1768893132297,170.804951,0.00012097,120]
[402762796,1768893180122,10000.01,8.799e-05,2]
[402762797,1768893180152,10000.01,8.799e-05,2]
[402762798,1768893180182,10000.01,8.799e-05,2]
[402762799,1768893180213,10000.01,8.799e-05,2]
[402762800,1768893180243,10000.01,8.799e-05,2]
[402762801,1768893180272,10000.01,8.799e-05,2]
[402762802,1768893180301,10000.01,8.799e-05,2]
[402762803,1768893180344,10000.01,8.799e-05,2]
[402762804,1768893180376,10000.01,8.799e-05,2]
[402762805,1768893180407,10000.01,8.799e-05,2]
[402762807,1768893195006,-1785.40461255,8.799e-05,2]
[402762808,1768893195131,-10000.01,8.799e-05,2]
[402762809,1768893195290,-10000.01,8.799e-05,2]
[402762810,1768893195417,-10000.01,8.799e-05,2]
[402762811,1768893195549,-10000.01,8.799e-05,2]
[402762812,1768893195814,-10000.01,8.799e-05,2]
[402762813,1768893195841,-10000.01,8.799e-05,2]
[402762814,1768893196058,-10000.01,8.799e-05,2]
[402762815,1768893196112,-10000.01,8.799e-05,2]
[402762816,1768893196209,-10000.01,8.799e-05,2]
[402762817,1768893212175,176.38,6.731e-05,2]
[402762818,1768893217355,-352.76,7.052e-05,2]
[402762819,1768893217393,-529.14,7.372e-05,2]
[402762820,1768893217426,-705.53,7.693e-05,2]
[402762821,1768893217462,-881.91,8.013e-05,2]
[402762822,1768893217495,-1058.29,8.334e-05,2]
[402762823,1768893217527,-1234.67,8.654e-05,2]
[402762824,1768893217641,-475.41,8.798e-05,2]
[402762825,1768893217676,-24.59,8.798e-05,2]
[402762826,1768893217710,-500.0,8.798e-05,2]
[402762827,1768893217742,-500.0,8.798e-05,2]
[402762828,1768893217773,-643.71161043,8.798e-05,2]
[402762829,1768893217804,-500.0,8.798e-05,2]
[402762830,1768893217836,-500.0,8.798e-05,2]
[402762831,1768893217867,-276.67976825,8.798e-05,2]
[402762832,1768893217901,-500.0,8.798e-05,2]
[402762833,1768893217937,-500.0,8.798e-05,2]
[402762834,1768893217971,-560.50775188,8.798e-05,2]
[402762835,1768893218005,-489.03173888,8.798e-05,2]
[402762836,1768893218101,-10.96826112,8.798e-05,2]
[402762837,1768893218135,-500.0,8.798e-05,2]
[402762838,1768893218167,-500.0,8.798e-05,2]
[402762839,1768893218200,-500.0,8.798e-05,2]
[402762840,1768893218233,-500.0,8.798e-05,2]
[402762841,1768893218266,-500.0,8.798e-05,2]
[402762842,1768893218613,-10.96826112,8.799e-05,2]
[402762843,1768893218629,-4978.07347776,8.799e-05,2]
[402762844,1768893218652,-10000.01,8.799e-05,2]
[402762845,1768893218678,-10000.01,8.799e-05,2]
[402762846,1768893218693,-10000.01,8.799e-05,2]
[402762847,1768893220504,-10000.01,8.799e-05,2]
[402762848,1768893226388,-10000.01,8.799e-05,2]
[402762849,1768893226532,-10000.01,8.799e-05,2]
[402762850,1768893226867,-10000.01,8.799e-05,2]
[402762851,1768893226884,-10000.01,8.799e-05,2]
[402762852,1768893226923,-10000.01,8.799e-05,2]
[402762853,1768893292369,435.82,6.729e-05,2]
[402762854,1768893293113,-871.65,7.05e-05,2]
[402762855,1768893293215,1307.47,7.37e-05,2]
[402762856,1768893293643,1743.29,7.691e-05,2]
[402762857,1768893294091,2179.12,8.011e-05,2]
[402762858,1768893295039,2614.94,8.332e-05,2]
[402762859,1768893303881,411.89,8.099e-05,2]
[402762860,1768893303910,515.89732898,8.099e-05,2]
[402762862,1768893373600,319.34,6.773e-05,2]
[402762863,1768893374053,638.68,7.096e-05,2]
[402762864,1768893374482,958.02,7.419e-05,2]
[402762865,1768893374914,1277.36,7.741e-05,2]
[402762866,1768893375377,1596.7,8.064e-05,2]
[402762867,1768893386746,632.62721792,8.101e-05,2]
[402762868,1768893460863,258.37,6.703e-05,2]
[402762869,1768893461305,516.75,7.022e-05,2]
[402762870,1768893461757,775.12,7.341e-05,2]
[402762871,1768893462201,1033.5,7.661e-05,2]
[402762872,1768893462648,1291.87,7.98e-05,2]
[402762873,1768893463587,185.7754531,8.299e-05,2]
[402762874,1768893463616,1364.4745469,8.299e-05,2]
[402762875,1768893497388,-324.71826537,8.548e-05,2]
[402762876,1768893497422,-1808.62,8.618e-05,2]
[402762877,1768893541924,166.3,6.696e-05,2]
[402762878,1768893542381,332.6,7.015e-05,2]
[402762879,1768893542834,498.9,7.334e-05,2]
[402762880,1768893543311,665.2,7.652e-05,2]
[402762881,1768893544273,831.5,7.971e-05,2]
[402762882,1768893544727,997.8,8.29e-05,2]
[402762883,1768893545137,1164.1,8.609e-05,2]
[402762885,1768893583348,-300.0,8.797e-05,2]
[402762886,1768893583371,-186.10290459,8.797e-05,2]
[402762887,1768893583397,-500.0,8.797e-05,2]
[402762888,1768893583420,-13.89709541,8.797e-05,2]
[402762889,1768893584847,-486.10290459,8.797e-05,2]
[402762890,1768893584869,-500.0,8.797e-05,2]
[402762891,1768893584896,-13.89709541,8.797e-05,2]
[402762892,1768893585878,-486.10290459,8.797e-05,2]
[402762893,1768893585902,-500.0,8.797e-05,2]
[402762894,1768893585927,-13.89709541,8.797e-05,2]
[402762895,1768893586601,-483.36024868,8.797e-05,2]
[402762896,1768893586624,-500.0,8.797e-05,2]
[402762897,1768893586646,-16.63975132,8.797e-05,2]
[402762898,1768893587452,-593.90273585,8.797e-05,2]
[402762899,1768893587475,-192.8760938,8.797e-05,2]
[402762900,1768893587497,-213.22117035,8.797e-05,2]
[402762901,1768893587545,-286.77882965,8.797e-05,2]
[402762902,1768893587565,-300.0,8.798e-05,2]
[402762903,1768893587587,-413.22117035,8.798e-05,2]
[402762904,1768893588933,-786.77882965,8.798e-05,2]
[402762905,1768893588955,-213.22117035,8.798e-05,2]
[402762906,1768893589990,-798.33688469,8.798e-05,2]
[402762907,1768893590011,-201.66311531,8.798e-05,2]
[402762908,1768893590950,-1000.0,8.798e-05,2]
[402762909,1768893591977,-1000.0,8.798e-05,2]
[402762910,1768893593135,-1000.0,8.798e-05,2]
[402762911,1768893594245,-1000.0,8.798e-05,2]
[402762912,1768893598441,-200.0,8.798e-05,2]
[402762913,1768893622253,245.92,6.971e-05,2]
[402762914,1768893622690,368.88,7.288e-05,2]
[402762915,1768893623194,491.85,7.605e-05,2]
[402762916,1768893623625,614.81,7.921e-05,2]
[402762917,1768893624071,737.77,8.238e-05,2]
[402762918,1768893624523,860.73,8.555e-05,2]
[402762919,1768893628075,-300.0,8.797e-05,2]
[402762920,1768893628096,-178.0,8.797e-05,2]
[402762921,1768893628118,-300.0,8.797e-05,2]
[402762922,1768893628138,-222.0,8.797e-05,2]
[402762923,1768893629575,-321.0,8.797e-05,2]
[402762924,1768893629598,-679.0,8.797e-05,2]
[402762925,1768893629629,-521.0,8.797e-05,2]
[402762926,1768893629652,-479.0,8.798e-05,2]
[402762927,1768893629724,-1000.0,8.798e-05,2]
[402762928,1768893630137,-1000.0,8.798e-05,2]
[402762929,1768893630447,-1000.0,8.798e-05,2]
[402762930,1768893630888,-208.41968495,8.797e-05,2]
[402762931,1768893630912,-791.58031505,8.798e-05,2]
[402762932,1768893631229,-1000.0,8.798e-05,2]
[402762933,1768893631563,-1000.0,8.798e-05,2]
[402762934,1768893631892,-1000.0,8.798e-05,2]
[402762935,1768893632256,-1000.0,8.798e-05,2]
[402762936,1768893632562,-1000.0,8.798e-05,2]
[402762937,1768893632904,-1000.0,8.798e-05,2]
[402762938,1768893633294,-1000.0,8.798e-05,2]
[402762939,1768893633632,-1000.0,8.798e-05,2]
[402762940,1768893633963,-1000.0,8.798e-05,2]
[402762941,1768893634322,-1000.0,8.798e-05,2]
[402762942,1768893634689,-1000.0,8.798e-05,2]
[402762943,1768893635036,-1000.0,8.798e-05,2]
[402762944,1768893635432,-1000.0,8.798e-05,2]
[402762945,1768893635813,-1000.0,8.798e-05,2]
[402762946,1768893636138,-1000.0,8.798e-05,2]
[402762947,1768893636509,-1000.0,8.798e-05,2]
[402762948,1768893636898,-64.65209322,8.798e-05,2]
[402762949,1768893636924,-500.0,8.798e-05,2]
[402762950,1768893636948,-313.89709541,8.798e-05,2]
[402762951,1768893636970,-121.45081137,8.798e-05,2]
[402762952,1768893637247,-378.54918863,8.798e-05,2]
[402762953,1768893637275,-499.99999999,8.798e-05,2]
[402762954,1768893637302,-121.45081138,8.798e-05,2]
[402762955,1768893637611,-378.54918862,8.798e-05,2]
[402762956,1768893637632,-427.63321893,8.798e-05,2]
[402762957,1768893637655,-193.81759245,8.798e-05,2]
[402762958,1768893637991,-306.18240755,8.798e-05,2]
[402762959,1768893638013,-500.0,8.798e-05,2]
[402762960,1768893638036,-193.81759245,8.798e-05,2]
[402762961,1768893638324,-306.18240755,8.798e-05,2]
[402762962,1768893638345,-500.0,8.798e-05,2]
[402762963,1768893638369,-193.81759245,8.798e-05,2]
[402762964,1768893638719,-306.18240755,8.798e-05,2]
[402762965,1768893638742,-500.0,8.798e-05,2]
[402762966,1768893638765,-193.81759245,8.798e-05,2]
[402762967,1768893639017,-306.18240755,8.798e-05,2]
[402762968,1768893639042,-500.0,8.798e-05,2]
[402762969,1768893639065,-193.81759245,8.798e-05,2]
[402762970,1768893639435,-306.18240755,8.798e-05,2]
[402762971,1768893639458,-500.0,8.798e-05,2]
[402762972,1768893639479,-193.81759245,8.798e-05,2]
[402762973,1768893639746,-306.18240755,8.798e-05,2]
[402762974,1768893639770,-500.0,8.798e-05,2]
[402762975,1768893639796,-193.81759245,8.798e-05,2]
[402762976,1768893640159,-201.67494384,8.798e-05,2]
[402762977,1768893640183,-500.0,8.798e-05,2]
[402762978,1768893640205,-298.32505616,8.798e-05,2]
[402762979,1768893640493,-201.67494384,8.798e-05,2]
[402762980,1768893640516,-500.0,8.798e-05,2]
[402762981,1768893640539,-298.32505616,8.798e-05,2]
[402762982,1768893640863,-201.67494384,8.798e-05,2]
[402762983,1768893640888,-500.0,8.798e-05,2]
[402762984,1768893640911,-298.32505616,8.798e-05,2]
[402762985,1768893641322,-201.67494384,8.798e-05,2]
[402762986,1768893641347,-500.0,8.798e-05,2]
[402762987,1768893641372,-298.32505616,8.798e-05,2]
[402762988,1768893641748,-201.67494384,8.798e-05,2]
[402762989,1768893641780,-520.55383263,8.798e-05,2]
[402762990,1768893641804,-277.77122353,8.798e-05,2]
[402762991,1768893642170,-222.22877647,8.798e-05,2]
[402762992,1768893642194,-500.0,8.798e-05,2]
[402762993,1768893642219,-277.77122353,8.798e-05,2]
[402762994,1768893642503,-222.22877647,8.798e-05,2]
[402762995,1768893642527,-500.0,8.798e-05,2]
[402762996,1768893642552,-277.77122353,8.798e-05,2]
[402762997,1768893642921,-222.22877647,8.798e-05,2]
[402762998,1768893642955,-500.0,8.798e-05,2]
[402762999,1768893642992,-277.77122353,8.798e-05,2]
[402763000,1768893643255,-222.22877647,8.798e-05,2]
[402763001,1768893643283,-500.0,8.798e-05,2]
[402763002,1768893643311,-277.77122353,8.798e-05,2]
[402763003,1768893645449,-222.22877647,8.798e-05,2]
[402763004,1768893645476,-500.0,8.798e-05,2]
[402763005,1768893645504,-277.77122353,8.798e-05,2]
[402763006,1768893645543,-222.22877647,8.798e-05,2]
[402763007,1768893645567,-500.0,8.798e-05,2]
[402763008,1768893645592,-277.77122353,8.798e-05,2]
[402763009,1768893645843,-222.22877647,8.798e-05,2]
[402763010,1768893645869,-777.77122353,8.799e-05,2]
[402763011,1768893646305,-1000.0,8.799e-05,2]
[402763012,1768893646833,-1000.0,8.799e-05,2]
[402763013,1768893667662,-300.0,8.798e-05,2]
[402763014,1768893688625,-482.17101664,8.798e-05,2]
[402763015,1768893688649,-517.82898336,8.799e-05,2]
[402763016,1768893690322,-1000.0,8.799e-05,2]
[402763017,1768893691426,-1000.0,8.799e-05,2]
[402763018,1768893692445,-1000.0,8.799e-05,2]
[402763019,1768893693446,-1000.0,8.799e-05,2]
[402763020,1768893694436,-1000.0,8.799e-05,2]
[402763021,1768893695526,-1000.0,8.799e-05,2]
[402763022,1768893696612,-1000.0,8.799e-05,2]
[402763023,1768893697682,-1000.0,8.799e-05,2]
[402763024,1768893698721,-1000.0,8.799e-05,2]
[402763025,1768893699670,-1000.0,8.799e-05,2]
[402763026,1768893700740,-1000.0,8.799e-05,2]
[402763027,1768893701813,-1000.0,8.799e-05,2]
[402763028,1768893702869,-1000.0,8.799e-05,2]
[402763029,1768893703958,-1000.0,8.799e-05,2]
[402763030,1768893704554,235.73,7.341e-05,2]
[402763031,1768893705003,353.6,7.674e-05,2]
[402763032,1768893705096,-1000.0,8.799e-05,2]
[402763033,1768893705449,471.46,8.008e-05,2]
[402763034,1768893705880,589.33,8.342e-05,2]
[402763035,1768893706169,-1000.0,8.799e-05,2]
[402763036,1768893706827,707.19,8.675e-05,2]
[402763037,1768893722781,300.0,8.798e-05,2]
[402763038,1768893723377,500.0,8.797e-05,2]
[402763039,1768893723418,500.0,8.797e-05,2]
[402763040,1768893723456,196.49312527,8.797e-05,2]
[402763041,1768893723727,304.84853604,8.797e-05,2]
[402763042,1768893723766,540.0,8.797e-05,2]
[402763043,1768893725632,500.0,8.797e-05,2]
[402763044,1768893725683,350.62337769,8.797e-05,2]
[402763045,1768893732575,-1000.0,8.799e-05,2]
[402763046,1768893732962,500.0,8.797e-05,2]
[402763047,1768893732995,500.0,8.797e-05,2]
[402763048,1768893733030,500.0,8.797e-05,2]
[402763049,1768893733080,500.0,8.797e-05,2]
[402763050,1768893733113,500.0,8.797e-05,2]
[402763051,1768893733145,500.0,8.797e-05,2]
[402763052,1768893733181,500.0,8.797e-05,2]
[402763053,1768893733213,350.734961,8.797e-05,2]
[402763054,1768893733240,149.265039,8.797e-05,2]
[402763055,1768893733277,500.0,8.797e-05,2]
[402763056,1768893733309,500.0,8.797e-05,2]
[402763057,1768893733349,500.0,8.797e-05,2]
[402763058,1768893733384,500.0,8.797e-05,2]
[402763059,1768893733428,500.0,8.797e-05,2]
[402763060,1768893733478,500.0,8.797e-05,2]
[402763061,1768893733513,500.0,8.797e-05,2]
[402763062,1768893733553,321.4674649,8.797e-05,2]
[402763063,1768893733778,-1000.0,8.799e-05,2]
[402763064,1768893735039,-1000.0,8.799e-05,2]
[402763065,1768893736120,-1000.0,8.799e-05,2]
[402763066,1768893740295,500.0,8.797e-05,2]
[402763067,1768893752039,500.0,8.797e-05,2]
[402763068,1768893752087,500.0,8.797e-05,2]
[402763069,1768893752147,500.0,8.797e-05,2]
[402763070,1768893752201,160.82619373,8.797e-05,2]
[402763071,1768893783270,300.0,8.798e-05,2]
[402763072,1768893786448,235.63,7.155e-05,2]
[402763073,1768893786876,471.25,7.495e-05,2]
[402763074,1768893787827,706.88,7.836e-05,2]
[402763075,1768893788275,942.51,8.177e-05,2]
[402763076,1768893788881,1178.13,8.517e-05,2]
[402763077,1768893793221,34.05130237,8.797e-05,2]
[402763078,1768893793252,465.94869763,8.797e-05,2]
[402763079,1768893801911,159.71063359,8.797e-05,2]
[402763080,1768893808383,376.61872182,8.797e-05,2]
[402763090,1768893842710,300.0,8.797e-05,2]
[402763091,1768893868407,219.66,7.159e-05,2]
[402763092,1768893868836,439.32,7.5e-05,2]
[402763093,1768893869276,658.99,7.841e-05,2]
[402763094,1768893869750,878.65,8.182e-05,2]
[402763095,1768893870181,1098.31,8.523e-05,2]
[402763096,1768893902571,300.0,8.797e-05,2]
[402763097,1768893905713,1200.0,8.797e-05,2]
[402763098,1768893910596,-269.98929367,8.798e-05,2]
[402763099,1768893910631,-500.0,8.798e-05,2]
[402763100,1768893910665,-158.62591321,8.798e-05,2]
[402763101,1768893910700,-500.0,8.798e-05,2]
[402763102,1768893910732,-432.83250403,8.798e-05,2]
[402763103,1768893910765,-500.0,8.798e-05,2]
[402763104,1768893910801,-500.0,8.798e-05,2]
[402763105,1768893910836,-459.54045773,8.798e-05,2]
[402763106,1768893910869,-500.0,8.798e-05,2]
[402763107,1768893911101,-293.31961361,8.798e-05,2]
[402763108,1768893962400,228.56,7.371e-05,2]
[402763109,1768893962434,300.0,8.798e-05,2]
[402763110,1768893963383,457.12,7.722e-05,2]
[402763111,1768893963820,685.68,8.073e-05,2]
[402763112,1768893964450,100.0344355,8.424e-05,2]
[402763113,1768893964484,814.2055645,8.424e-05,2]
[402763114,1768893964914,1142.8,8.775e-05,2]
[402763117,1768894022898,300.0,8.798e-05,2]
[402763118,1768894043591,247.04,6.594e-05,2]
[402763119,1768894044027,494.07,6.908e-05,2]
[402763120,1768894044466,741.11,7.222e-05,2]
[402763122,1768894044902,988.14,7.536e-05,2]
[402763123,1768894045330,1235.18,7.85e-05,2]
[402763124,1768894045781,1482.22,8.164e-05,2]
[402763125,1768894046253,1729.25,8.478e-05,2]
[402763126,1768894046671,825.9944355,8.792e-05,2]
[402763127,1768894046702,1150.2955645,8.792e-05,2]
[402763129,1768894060774,-151.0,0.00013726,30]
[402763132,1768894071350,-4016.07920371,8.799e-05,2]
[402763133,1768894071368,-10000.01,8.799e-05,2]
[402763134,1768894071384,-10000.01,8.799e-05,2]
[402763135,1768894072713,-10000.01,8.799e-05,2]
[402763136,1768894072828,-10000.01,8.799e-05,2]
[402763137,1768894072959,-10000.01,8.799e-05,2]
[402763138,1768894073562,-10000.01,8.799e-05,2]
[402763139,1768894073704,-10000.01,8.799e-05,2]
[402763140,1768894073852,-10000.01,8.799e-05,2]
[402763141,1768894073989,-10000.01,8.799e-05,2]
[402763142,1768894075790,-10000.01,8.799e-05,2]
[402763143,1768894075905,-10000.01,8.799e-05,2]
[402763145,1768894082879,300.0,8.798e-05,2]
[402763147,1768894123634,234.33,6.548e-05,2]
[402763148,1768894124043,468.65,6.86e-05,2]
[402763149,1768894124494,702.98,7.172e-05,2]
[402763150,1768894124952,937.31,7.484e-05,2]
[402763151,1768894125436,1171.63,7.796e-05,2]
[402763152,1768894125871,1405.96,8.108e-05,2]
[402763153,1768894126322,1640.28,8.419e-05,2]
[402763154,1768894126789,1874.61,8.731e-05,2]
[402763155,1768894142725,300.0,8.798e-05,2]
[402763156,1768894202148,300.0,8.798e-05,2]
[402763157,1768894205439,664.26,8.798e-05,2]
[402763158,1768894205468,535.74,8.798e-05,2]
[402763159,1768894206109,253.92,6.838e-05,2]
[402763160,1768894206553,380.89,7.149e-05,2]
[402763161,1768894206985,507.85,7.46e-05,2]
[402763162,1768894207431,634.81,7.77e-05,2]
[402763163,1768894208392,761.77,8.081e-05,2]
[402763164,1768894208831,888.74,8.392e-05,2]
[402763165,1768894209379,1015.7,8.703e-05,2]
[402763166,1768894218668,5020.59,8.699e-05,2]
[402763167,1768894218705,10000.01,8.699e-05,2]